[Event "Early-Titled-Tuesday-Blitz-June-18-2024"]
[Site "Chess.com"]
[Date "2024.06.18"]
[Round "8"]
[White "NigiriSushies"]
[Black "masterofpuppets2"]
[Result "0-1"]
[WhiteElo "2311"]
[BlackElo "2485"]
[TimeControl "180+1"]
[EndTime "9:31:19 PDT"]
[Termination "masterofpuppets2 won on time"]

1. d4 {[%clk 0:02:59.9]} 1... d5 {[%clk 0:02:59]} 2. c4 {[%clk 0:03:00.1]} 2...
e6 {[%clk 0:02:59.1]} 3. Nc3 {[%clk 0:02:59.7]} 3... Bb4 {[%clk 0:02:59.1]} 4.
Nf3 {[%clk 0:02:57.3]} 4... Nf6 {[%clk 0:02:58.6]} 5. Bg5 {[%clk 0:02:55.2]}
5... dxc4 {[%clk 0:02:58.1]} 6. e4 {[%clk 0:02:52.8]} 6... b5 {[%clk 0:02:58.3]}
7. e5 {[%clk 0:02:52.2]} 7... h6 {[%clk 0:02:58.2]} 8. Bh4 {[%clk 0:02:52.3]}
8... g5 {[%clk 0:02:57.7]} 9. Nxg5 {[%clk 0:02:51.4]} 9... hxg5 {[%clk
0:02:58.6]} 10. Bxg5 {[%clk 0:02:51.5]} 10... Nbd7 {[%clk 0:02:59.1]} 11. Qf3
{[%clk 0:02:48.2]} 11... Rb8 {[%clk 0:02:57.3]} 12. exf6 {[%clk 0:02:47.3]}
12... Bb7 {[%clk 0:02:56.6]} 13. Qf4 {[%clk 0:02:43.2]} 13... c5 {[%clk
0:02:51.2]} 14. Rd1 {[%clk 0:02:36.7]} 14... cxd4 {[%clk 0:02:28.3]} 15. Rxd4
{[%clk 0:02:35.8]} 15... e5 {[%clk 0:02:21.5]} 16. Qe3 {[%clk 0:02:30.7]} 16...
Qb6 {[%clk 0:02:03.4]} 17. Rd1 {[%clk 0:01:56.6]} 17... Bc5 {[%clk 0:01:53]} 18.
Qe2 {[%clk 0:01:51.6]} 18... Bd4 {[%clk 0:01:52.5]} 19. Ne4 {[%clk 0:01:46.2]}
19... Nf8 {[%clk 0:01:35.3]} 20. Be3 {[%clk 0:01:28.2]} 20... Ne6 {[%clk
0:01:32.8]} 21. Bxd4 {[%clk 0:00:42.7]} 21... exd4 {[%clk 0:01:22.2]} 22. Ng5
{[%clk 0:00:34.5]} 22... d3 {[%clk 0:01:18.9]} 23. Qe5 {[%clk 0:00:25.3]} 23...
Rh5 {[%clk 0:01:12.5]} 24. h4 {[%clk 0:00:20.5]} 24... Rd8 {[%clk 0:01:09.7]}
25. Rh3 {[%clk 0:00:16.6]} 25... Ba8 {[%clk 0:00:55.5]} 26. g4 {[%clk
0:00:11.3]} 26... Rd5 {[%clk 0:00:51.7]} 27. Qe3 {[%clk 0:00:11.4]} 27... Qxe3+
{[%clk 0:00:50.8]} 28. Rxe3 {[%clk 0:00:12.3]} 28... Rxh4 {[%clk 0:00:50.8]} 29.
Nxe6 {[%clk 0:00:11.4]} 29... fxe6 {[%clk 0:00:51.4]} 30. Bg2 {[%clk 0:00:10.8]}
30... Rd8 {[%clk 0:00:50.6]} 31. Rxe6+ {[%clk 0:00:09.1]} 31... Kf7 {[%clk
0:00:50.8]} 32. Bxa8 {[%clk 0:00:05]} 32... Kxe6 {[%clk 0:00:48.5]} 33. Bc6
{[%clk 0:00:05.6]} 33... Kxf6 {[%clk 0:00:43.1]} 34. Bxb5 {[%clk 0:00:05]} 34...
Rxg4 {[%clk 0:00:42]} 35. Kd2 {[%clk 0:00:04.2]} 35... Rb8 {[%clk 0:00:39.2]}
36. a4 {[%clk 0:00:03.3]} 36... a6 {[%clk 0:00:39.8]} 37. Bxa6 {[%clk
0:00:03.3]} 37... Rxb2+ {[%clk 0:00:40.1]} 38. Kc3 {[%clk 0:00:03.7]} 38... Rc2+
{[%clk 0:00:40.4]} 39. Kb4 {[%clk 0:00:04.2]} 39... Rxf2 {[%clk 0:00:34.4]} 40.
Bxc4 {[%clk 0:00:01.5]} 40... Rc2 {[%clk 0:00:34.7]} 41. Rxd3 {[%clk 0:00:01.7]}
41... Rcxc4+ {[%clk 0:00:33.1]} 42. Kb5 {[%clk 0:00:02.3]} 42... Rxa4 {[%clk
0:00:34]} 43. Rf3+ {[%clk 0:00:02.6]} 43... Raf4 {[%clk 0:00:33.2]} 44. Rc3
{[%clk 0:00:03.2]} 44... Rf5+ {[%clk 0:00:33.3]} 45. Kb6 {[%clk 0:00:03.1]}
45... Re4 {[%clk 0:00:33.4]} 46. Rh3 {[%clk 0:00:02.4]} 46... Re6+ {[%clk
0:00:33.8]} 47. Kc7 {[%clk 0:00:02.7]} 47... Kg7 {[%clk 0:00:34.4]} 48. Rg3+
{[%clk 0:00:02.7]} 48... Rg6 {[%clk 0:00:34.2]} 49. Rd3 {[%clk 0:00:02.5]} 49...
Rf7+ {[%clk 0:00:34.5]} 50. Kd8 {[%clk 0:00:01.6]} 50... Kh7 {[%clk 0:00:30.7]}
51. Rh3+ {[%clk 0:00:01]} 51... Rh6 {[%clk 0:00:31.2]} 52. Rg3 {[%clk
0:00:01.6]} 52... Rg7 {[%clk 0:00:30.7]} 53. Rf3 {[%clk 0:00:02.2]} 53... Kg8
{[%clk 0:00:28.4]} 54. Ke8 {[%clk 0:00:01.3]} 54... Re6+ {[%clk 0:00:26.4]} 55.
Kd8 {[%clk 0:00:01.7]} 55... Kh8 {[%clk 0:00:26.1]} 56. Rf8+ {[%clk 0:00:01.7]}
56... Kh7 {[%clk 0:00:25.7]} 57. Rf3 {[%clk 0:00:01.9]} 57... Rh6 {[%clk
0:00:24.5]} 58. Kc8 {[%clk 0:00:01.4]} 58... Kg6 {[%clk 0:00:22.5]} 59. Rg3+
{[%clk 0:00:01]} 59... Kf7 {[%clk 0:00:22.7]} 60. Rf3+ {[%clk 0:00:01.7]} 60...
Kg8 {[%clk 0:00:21.9]} 61. Rd3 {[%clk 0:00:01.9]} 61... Rh8 {[%clk 0:00:22.1]}
62. Rh3 {[%clk 0:00:01]} 62... Rxh3 {[%clk 0:00:20.9]} 0-1

[Event "Early-Titled-Tuesday-Blitz-June-18-2024"]
[Site "Chess.com"]
[Date "2024.06.18"]
[Round "8"]
[White "Eagle_2019"]
[Black "Silent-Killer100"]
[Result "0-1"]
[WhiteElo "2821"]
[BlackElo "2588"]
[TimeControl "180+1"]
[EndTime "9:31:21 PDT"]
[Termination "Silent-Killer100 won on time"]

1. c4 {[%clk 0:03:00.9]} 1... b6 {[%clk 0:02:58.6]} 2. Nc3 {[%clk 0:02:46.8]}
2... Bb7 {[%clk 0:02:57.8]} 3. d4 {[%clk 0:02:47.2]} 3... Nf6 {[%clk 0:02:57.6]}
4. d5 {[%clk 0:02:40.8]} 4... e6 {[%clk 0:02:57.3]} 5. e4 {[%clk 0:02:40.6]}
5... exd5 {[%clk 0:02:56.7]} 6. e5 {[%clk 0:02:29.1]} 6... Ne4 {[%clk 0:02:45]}
7. cxd5 {[%clk 0:02:25.4]} 7... Bb4 {[%clk 0:02:23.6]} 8. Qd4 {[%clk 0:02:01.2]}
8... Nxc3 {[%clk 0:02:21.9]} 9. bxc3 {[%clk 0:02:00.2]} 9... Bc5 {[%clk
0:02:22]} 10. Qd3 {[%clk 0:01:53.8]} 10... Qe7 {[%clk 0:02:12.8]} 11. Nf3 {[%clk
0:01:52.3]} 11... d6 {[%clk 0:02:10]} 12. Qe4 {[%clk 0:01:32.6]} 12... Nd7
{[%clk 0:01:46.3]} 13. Bb5 {[%clk 0:01:26.7]} 13... O-O-O {[%clk 0:01:37.5]} 14.
O-O {[%clk 0:01:19.5]} 14... Nxe5 {[%clk 0:01:33.6]} 15. Nd4 {[%clk 0:01:10.5]}
15... Kb8 {[%clk 0:01:13.7]} 16. Bf4 {[%clk 0:01:07.1]} 16... Ng6 {[%clk
0:01:02.5]} 17. Qf5 {[%clk 0:00:56.2]} 17... Nxf4 {[%clk 0:01:00.3]} 18. Qxf4
{[%clk 0:00:54.7]} 18... Bxd4 {[%clk 0:00:47.3]} 19. Qxd4 {[%clk 0:00:52.6]}
19... Qg5 {[%clk 0:00:46.4]} 20. c4 {[%clk 0:00:48.4]} 20... h5 {[%clk
0:00:43.9]} 21. Ba4 {[%clk 0:00:42.2]} 21... h4 {[%clk 0:00:42.4]} 22. h3 {[%clk
0:00:41.6]} 22... Rh6 {[%clk 0:00:41.8]} 23. Bc2 {[%clk 0:00:39.1]} 23... Bc8
{[%clk 0:00:33]} 24. Kh2 {[%clk 0:00:33.9]} 24... Rhh8 {[%clk 0:00:30]} 25. a4
{[%clk 0:00:30.1]} 25... Rhe8 {[%clk 0:00:25.9]} 26. Rfe1 {[%clk 0:00:27]} 26...
Bd7 {[%clk 0:00:22.5]} 27. a5 {[%clk 0:00:24]} 27... Rxe1 {[%clk 0:00:22.7]} 28.
Rxe1 {[%clk 0:00:23.4]} 28... Re8 {[%clk 0:00:23.6]} 29. Rxe8+ {[%clk
0:00:17.7]} 29... Bxe8 {[%clk 0:00:24.5]} 30. a6 {[%clk 0:00:16.3]} 30... Qe5+
{[%clk 0:00:24.2]} 31. Qxe5 {[%clk 0:00:16.2]} 31... dxe5 {[%clk 0:00:25.1]} 32.
g3 {[%clk 0:00:16.4]} 32... hxg3+ {[%clk 0:00:24.5]} 33. fxg3 {[%clk 0:00:16.3]}
33... c6 {[%clk 0:00:21.4]} 34. d6 {[%clk 0:00:15.9]} 34... g6 {[%clk
0:00:21.2]} 35. g4 {[%clk 0:00:13.2]} 35... Kc8 {[%clk 0:00:21.1]} 36. h4 {[%clk
0:00:12.4]} 36... f6 {[%clk 0:00:19.4]} 37. Bd1 {[%clk 0:00:06]} 37... Kd7
{[%clk 0:00:19.3]} 38. h5 {[%clk 0:00:06.2]} 38... gxh5 {[%clk 0:00:18]} 39.
gxh5 {[%clk 0:00:06.1]} 39... Kxd6 {[%clk 0:00:18.9]} 40. h6 {[%clk 0:00:06.2]}
40... Bg6 {[%clk 0:00:18.7]} 41. Bh5 {[%clk 0:00:06.3]} 41... Bh7 {[%clk
0:00:18.1]} 42. Be8 {[%clk 0:00:06.5]} 42... e4 {[%clk 0:00:17.3]} 43. Kg3
{[%clk 0:00:06.5]} 43... Kc5 {[%clk 0:00:15.8]} 44. Kf4 {[%clk 0:00:06]} 44...
b5 {[%clk 0:00:15.4]} 45. cxb5 {[%clk 0:00:05.7]} 45... cxb5 {[%clk 0:00:16.3]}
46. Bd7 {[%clk 0:00:05.7]} 46... Kd4 {[%clk 0:00:09.3]} 47. Bf5 {[%clk
0:00:05.6]} 47... e3 {[%clk 0:00:06.1]} 48. Bg4 {[%clk 0:00:02.6]} 48... b4
{[%clk 0:00:04.8]} 49. Bd1 {[%clk 0:00:02.5]} 49... b3 {[%clk 0:00:04]} 50. Bc2
{[%clk 0:00:02.5]} 50... bxc2 {[%clk 0:00:04.1]} 0-1

[Event "Early-Titled-Tuesday-Blitz-June-18-2024"]
[Site "Chess.com"]
[Date "2024.06.18"]
[Round "8"]
[White "cthake"]
[Black "teresin05"]
[Result "0-1"]
[WhiteElo "1831"]
[BlackElo "2303"]
[TimeControl "180+1"]
[EndTime "9:31:24 PDT"]
[Termination "teresin05 won by resignation"]

1. e4 {[%clk 0:03:00.9]} 1... c5 {[%clk 0:02:57.6]} 2. Nf3 {[%clk 0:02:59.6]}
2... Nc6 {[%clk 0:02:57.7]} 3. Bb5 {[%clk 0:02:59]} 3... e6 {[%clk 0:02:56.5]}
4. c3 {[%clk 0:02:58.8]} 4... Nge7 {[%clk 0:02:56.6]} 5. d4 {[%clk 0:02:55.7]}
5... cxd4 {[%clk 0:02:43.4]} 6. cxd4 {[%clk 0:02:53.6]} 6... a6 {[%clk 0:02:38]}
7. Be2 {[%clk 0:02:42.6]} 7... Ng6 {[%clk 0:02:21.8]} 8. O-O {[%clk 0:02:40.9]}
8... Be7 {[%clk 0:02:20.6]} 9. Nc3 {[%clk 0:02:39.9]} 9... O-O {[%clk
0:02:11.5]} 10. Be3 {[%clk 0:02:33.3]} 10... b5 {[%clk 0:01:52.4]} 11. a3 {[%clk
0:02:32.4]} 11... Bb7 {[%clk 0:01:48.1]} 12. d5 {[%clk 0:02:26.3]} 12... Nce5
{[%clk 0:01:35]} 13. Nxe5 {[%clk 0:02:19.9]} 13... Nxe5 {[%clk 0:01:34.4]} 14.
Bd4 {[%clk 0:01:58.7]} 14... Qc7 {[%clk 0:01:21.4]} 15. Rc1 {[%clk 0:01:50.1]}
15... Qb8 {[%clk 0:01:15]} 16. b3 {[%clk 0:01:39.1]} 16... Bd6 {[%clk
0:01:00.9]} 17. Be3 {[%clk 0:01:30.7]} 17... Bxa3 {[%clk 0:00:59.5]} 18. Rc2
{[%clk 0:01:25.8]} 18... Ng6 {[%clk 0:00:48.4]} 19. f4 {[%clk 0:01:22.7]} 19...
Be7 {[%clk 0:00:41.3]} 20. e5 {[%clk 0:01:08.7]} 20... b4 {[%clk 0:00:33.9]} 21.
d6 {[%clk 0:01:02.6]} 21... bxc3 {[%clk 0:00:30.1]} 22. dxe7 {[%clk 0:01:02]}
22... Nxe7 {[%clk 0:00:30.8]} 23. Rxc3 {[%clk 0:01:00.5]} 23... Nd5 {[%clk
0:00:31]} 24. Rd3 {[%clk 0:00:57.5]} 24... Nxe3 {[%clk 0:00:30.7]} 25. Rxe3
{[%clk 0:00:57]} 25... Bd5 {[%clk 0:00:31.2]} 26. Bc4 {[%clk 0:00:54.5]} 26...
Qb6 {[%clk 0:00:29.8]} 27. Re1 {[%clk 0:00:53.9]} 27... Bxc4 {[%clk 0:00:25.9]}
28. bxc4 {[%clk 0:00:53.3]} 28... Rac8 {[%clk 0:00:25.6]} 29. Qe2 {[%clk
0:00:49.5]} 29... Rc7 {[%clk 0:00:19.7]} 30. Kf1 {[%clk 0:00:40.5]} 30... Rfc8
{[%clk 0:00:17.8]} 31. Rc3 {[%clk 0:00:39.6]} 31... d5 {[%clk 0:00:17]} 32. Rec1
{[%clk 0:00:30.9]} 32... Qd4 {[%clk 0:00:15.3]} 33. c5 {[%clk 0:00:27.9]} 33...
Qxf4+ {[%clk 0:00:14.9]} 34. Kg1 {[%clk 0:00:26.4]} 34... Qd4+ {[%clk 0:00:15]}
35. Kf1 {[%clk 0:00:26]} 35... Rxc5 {[%clk 0:00:15.3]} 36. Rxc5 {[%clk
0:00:24.4]} 36... Rxc5 {[%clk 0:00:16.2]} 37. Rb1 {[%clk 0:00:22.8]} 37... g6
{[%clk 0:00:14]} 38. Qxa6 {[%clk 0:00:19.9]} 38... Kg7 {[%clk 0:00:13]} 39. Qe2
{[%clk 0:00:19.1]} 39... Qf4+ {[%clk 0:00:10.6]} 40. Kg1 {[%clk 0:00:17.3]}
40... d4 {[%clk 0:00:09.4]} 41. Rf1 {[%clk 0:00:17]} 41... Qxe5 {[%clk
0:00:09.2]} 42. Qf3 {[%clk 0:00:15.7]} 42... Rc7 {[%clk 0:00:07.6]} 43. Qd3
{[%clk 0:00:10.1]} 43... Rd7 {[%clk 0:00:08]} 44. Kh1 {[%clk 0:00:08.4]} 44...
Qd5 {[%clk 0:00:08.5]} 45. h3 {[%clk 0:00:08]} 45... e5 {[%clk 0:00:09]} 46. Qf3
{[%clk 0:00:07.8]} 46... Qxf3 {[%clk 0:00:07.4]} 47. Rxf3 {[%clk 0:00:07.8]}
47... d3 {[%clk 0:00:08.3]} 48. Rf1 {[%clk 0:00:08]} 48... d2 {[%clk 0:00:08]}
49. Rd1 {[%clk 0:00:08.3]} 49... e4 {[%clk 0:00:08.6]} 50. Kg1 {[%clk
0:00:08.8]} 50... e3 {[%clk 0:00:08.5]} 51. Kf1 {[%clk 0:00:09.1]} 51... f5
{[%clk 0:00:08.3]} 52. g3 {[%clk 0:00:07.9]} 52... g5 {[%clk 0:00:08.5]} 53. Ke2
{[%clk 0:00:08.1]} 53... f4 {[%clk 0:00:09]} 54. gxf4 {[%clk 0:00:08.2]} 54...
gxf4 {[%clk 0:00:09.9]} 55. Kf3 {[%clk 0:00:08.7]} 55... Re7 {[%clk 0:00:08.2]}
56. Ke2 {[%clk 0:00:06.9]} 56... Kf6 {[%clk 0:00:08.4]} 57. Rf1 {[%clk
0:00:06.5]} 57... Kf5 {[%clk 0:00:08.1]} 58. h4 {[%clk 0:00:06.4]} 58... Rd7
{[%clk 0:00:08.4]} 59. Rd1 {[%clk 0:00:05.2]} 59... Ke4 {[%clk 0:00:09.1]} 60.
h5 {[%clk 0:00:04.5]} 60... f3+ {[%clk 0:00:09.4]} 61. Kf1 {[%clk 0:00:04.3]}
61... e2+ {[%clk 0:00:10.2]} 62. Kf2 {[%clk 0:00:03.8]} 62... exd1=Q {[%clk
0:00:10.7]} 0-1

[Event "Early-Titled-Tuesday-Blitz-June-18-2024"]
[Site "Chess.com"]
[Date "2024.06.18"]
[Round "8"]
[White "AlphaPerseii"]
[Black "Nadtkins"]
[Result "1/2-1/2"]
[WhiteElo "2398"]
[BlackElo "2534"]
[TimeControl "180+1"]
[EndTime "9:31:25 PDT"]
[Termination "Game drawn by repetition"]

1. Nf3 {[%clk 0:02:59.3]} 1... Nf6 {[%clk 0:02:59.2]} 2. b3 {[%clk 0:02:58.5]}
2... g6 {[%clk 0:02:56.7]} 3. Bb2 {[%clk 0:02:58.4]} 3... Bg7 {[%clk 0:02:57.3]}
4. e3 {[%clk 0:02:57.9]} 4... d6 {[%clk 0:02:55.8]} 5. d4 {[%clk 0:02:56.2]}
5... Nbd7 {[%clk 0:02:54.5]} 6. Be2 {[%clk 0:02:52.9]} 6... O-O {[%clk
0:02:51.4]} 7. O-O {[%clk 0:02:52.7]} 7... a5 {[%clk 0:02:47]} 8. a3 {[%clk
0:02:49.6]} 8... c6 {[%clk 0:02:47]} 9. c4 {[%clk 0:02:47.9]} 9... Qc7 {[%clk
0:02:44.6]} 10. Nc3 {[%clk 0:02:47.5]} 10... e5 {[%clk 0:02:34.8]} 11. Qc2
{[%clk 0:02:37.4]} 11... Re8 {[%clk 0:02:34.9]} 12. d5 {[%clk 0:02:29.2]} 12...
cxd5 {[%clk 0:02:24.6]} 13. Rac1 {[%clk 0:02:13.3]} 13... dxc4 {[%clk
0:01:58.1]} 14. Bxc4 {[%clk 0:02:14.2]} 14... Nb6 {[%clk 0:01:58]} 15. Nb5
{[%clk 0:02:14.6]} 15... Qe7 {[%clk 0:01:55.2]} 16. Rfd1 {[%clk 0:01:54.3]}
16... Bf5 {[%clk 0:01:49.8]} 17. Qd2 {[%clk 0:01:45.4]} 17... Ne4 {[%clk
0:01:26.5]} 18. Qe1 {[%clk 0:01:44.4]} 18... Red8 {[%clk 0:01:17.7]} 19. Bd3
{[%clk 0:01:18.2]} 19... a4 {[%clk 0:00:59.9]} 20. b4 {[%clk 0:01:02.1]} 20...
Rac8 {[%clk 0:00:52.3]} 21. Rxc8 {[%clk 0:00:50.3]} 21... Nxc8 {[%clk
0:00:51.5]} 22. Rc1 {[%clk 0:00:49.2]} 22... Nb6 {[%clk 0:00:43.4]} 23. Qd1
{[%clk 0:00:45.9]} 23... d5 {[%clk 0:00:35.4]} 24. h3 {[%clk 0:00:21.9]} 24...
h5 {[%clk 0:00:34.5]} 25. Rc7 {[%clk 0:00:16.7]} 25... Rd7 {[%clk 0:00:34.3]}
26. Rc1 {[%clk 0:00:17.1]} 26... Nxf2 {[%clk 0:00:33.8]} 27. Kxf2 {[%clk
0:00:16.5]} 27... e4 {[%clk 0:00:33.5]} 28. Bxg7 {[%clk 0:00:15]} 28... Kxg7
{[%clk 0:00:33.3]} 29. Be2 {[%clk 0:00:14.8]} 29... exf3 {[%clk 0:00:33.2]} 30.
Bxf3 {[%clk 0:00:15.7]} 30... Qh4+ {[%clk 0:00:32.6]} 31. Kg1 {[%clk 0:00:15.6]}
31... Re7 {[%clk 0:00:29.9]} 32. Rc3 {[%clk 0:00:09.3]} 32... Qf6 {[%clk
0:00:27.6]} 33. Qd2 {[%clk 0:00:07.4]} 33... Nc4 {[%clk 0:00:27.9]} 34. Qxd5
{[%clk 0:00:04.7]} 34... Nxe3 {[%clk 0:00:28.1]} 35. Qd4 {[%clk 0:00:04.1]}
35... Nc2 {[%clk 0:00:17.8]} 36. Qxf6+ {[%clk 0:00:03.5]} 36... Kxf6 {[%clk
0:00:18.7]} 37. Nd6 {[%clk 0:00:03.5]} 37... Re1+ {[%clk 0:00:17.7]} 38. Kf2
{[%clk 0:00:03.7]} 38... Rc1 {[%clk 0:00:15.9]} 39. Ne4+ {[%clk 0:00:03.8]}
39... Ke5 {[%clk 0:00:13.6]} 40. Nc5 {[%clk 0:00:04]} 40... Ra1 {[%clk
0:00:11.9]} 41. Nxa4 {[%clk 0:00:04.2]} 41... Rxa3 {[%clk 0:00:11.5]} 42. Rxa3
{[%clk 0:00:04.6]} 42... Nxa3 {[%clk 0:00:12.4]} 43. Bxb7 {[%clk 0:00:05.3]}
43... Bc2 {[%clk 0:00:12.4]} 44. Nc5 {[%clk 0:00:05.3]} 44... f5 {[%clk
0:00:11.8]} 45. Ke3 {[%clk 0:00:05.3]} 45... g5 {[%clk 0:00:11.8]} 46. Kd2
{[%clk 0:00:05.4]} 46... Be4 {[%clk 0:00:09.5]} 47. Bxe4 {[%clk 0:00:04]} 47...
fxe4 {[%clk 0:00:10.4]} 48. Ke3 {[%clk 0:00:04]} 48... Nc4+ {[%clk 0:00:09.9]}
49. Ke2 {[%clk 0:00:04]} 49... Nb6 {[%clk 0:00:10.2]} 50. Nb3 {[%clk 0:00:03.6]}
50... Nd5 {[%clk 0:00:08.7]} 51. b5 {[%clk 0:00:03.5]} 51... Nc3+ {[%clk
0:00:09.3]} 52. Ke3 {[%clk 0:00:03.8]} 52... Nxb5 {[%clk 0:00:10.2]} 53. Nc5
{[%clk 0:00:03.7]} 53... Nd6 {[%clk 0:00:10]} 54. g4 {[%clk 0:00:03.9]} 54... h4
{[%clk 0:00:09.5]} 55. Nd7+ {[%clk 0:00:02.8]} 55... Kd5 {[%clk 0:00:09.1]} 56.
Nf6+ {[%clk 0:00:03.1]} 56... Ke6 {[%clk 0:00:09.7]} 57. Nh7 {[%clk 0:00:03.4]}
57... Nf7 {[%clk 0:00:06.1]} 58. Kxe4 {[%clk 0:00:03.2]} 58... Nd6+ {[%clk
0:00:05.5]} 59. Kd4 {[%clk 0:00:03.4]} 59... Nf7 {[%clk 0:00:05.2]} 60. Ke4
{[%clk 0:00:03.8]} 60... Nd6+ {[%clk 0:00:04.8]} 61. Kd4 {[%clk 0:00:04]} 61...
Nf7 {[%clk 0:00:05.1]} 62. Ke4 {[%clk 0:00:03.4]} 1/2-1/2

[Event "Early-Titled-Tuesday-Blitz-June-18-2024"]
[Site "Chess.com"]
[Date "2024.06.18"]
[Round "8"]
[White "MasterKroket"]
[Black "LuisFSiles"]
[Result "0-1"]
[WhiteElo "2514"]
[BlackElo "2345"]
[TimeControl "180+1"]
[EndTime "9:31:25 PDT"]
[Termination "LuisFSiles won on time"]

1. e4 {[%clk 0:02:57.1]} 1... c5 {[%clk 0:02:59.1]} 2. Nf3 {[%clk 0:02:57.3]}
2... Nc6 {[%clk 0:02:58.8]} 3. d4 {[%clk 0:02:57.7]} 3... cxd4 {[%clk
0:02:59.7]} 4. Nxd4 {[%clk 0:02:57.4]} 4... Nf6 {[%clk 0:03:00.4]} 5. Nc3 {[%clk
0:02:57.8]} 5... e5 {[%clk 0:03:01]} 6. Ndb5 {[%clk 0:02:58.3]} 6... d6 {[%clk
0:03:01.6]} 7. Bg5 {[%clk 0:02:58.9]} 7... a6 {[%clk 0:03:01.7]} 8. Na3 {[%clk
0:02:59.6]} 8... b5 {[%clk 0:03:02.3]} 9. Nd5 {[%clk 0:03:00.3]} 9... Be7 {[%clk
0:03:02.3]} 10. Bxf6 {[%clk 0:03:01]} 10... Bxf6 {[%clk 0:03:03.2]} 11. c3
{[%clk 0:03:00.8]} 11... O-O {[%clk 0:03:02]} 12. Nc2 {[%clk 0:03:01]} 12... Rb8
{[%clk 0:03:02.4]} 13. Nce3 {[%clk 0:02:56]} 13... Bg5 {[%clk 0:02:57.1]} 14. h4
{[%clk 0:02:55.4]} 14... Bh6 {[%clk 0:02:46]} 15. g4 {[%clk 0:02:54.1]} 15...
Bf4 {[%clk 0:02:46.1]} 16. h5 {[%clk 0:02:45.8]} 16... Be6 {[%clk 0:02:40.8]}
17. Be2 {[%clk 0:02:32.7]} 17... Ne7 {[%clk 0:02:35.1]} 18. Nxf4 {[%clk
0:02:29.6]} 18... exf4 {[%clk 0:02:33.4]} 19. Ng2 {[%clk 0:02:25.3]} 19... g5
{[%clk 0:02:10.3]} 20. hxg6 {[%clk 0:02:18]} 20... fxg6 {[%clk 0:02:09.7]} 21.
Nh4 {[%clk 0:02:05]} 21... Nc6 {[%clk 0:01:55.1]} 22. Qd2 {[%clk 0:01:56.5]}
22... Ne5 {[%clk 0:01:51.2]} 23. f3 {[%clk 0:01:47]} 23... Bc4 {[%clk
0:01:45.7]} 24. Rd1 {[%clk 0:01:40.9]} 24... Qb6 {[%clk 0:01:14.4]} 25. Ng2
{[%clk 0:01:26.7]} 25... Nxg4 {[%clk 0:01:06]} 26. Bxc4+ {[%clk 0:01:21.6]}
26... bxc4 {[%clk 0:01:04]} 27. fxg4 {[%clk 0:01:18.9]} 27... f3 {[%clk
0:00:51.8]} 28. Ne3 {[%clk 0:01:18.6]} 28... Rbe8 {[%clk 0:00:50.8]} 29. Qd5+
{[%clk 0:01:15.2]} 29... Rf7 {[%clk 0:00:50.7]} 30. Nxc4 {[%clk 0:01:07.4]}
30... Qb5 {[%clk 0:00:36.8]} 31. Qxb5 {[%clk 0:00:51.7]} 31... Rxe4+ {[%clk
0:00:35.7]} 32. Kf1 {[%clk 0:00:50]} 32... axb5 {[%clk 0:00:34.2]} 33. Nxd6
{[%clk 0:00:50.4]} 33... Rd7 {[%clk 0:00:33.1]} 34. Rh2 {[%clk 0:00:48.1]} 34...
Rxg4 {[%clk 0:00:29.1]} 35. Rhd2 {[%clk 0:00:48]} 35... Rh4 {[%clk 0:00:24.6]}
36. Kf2 {[%clk 0:00:40.5]} 36... h5 {[%clk 0:00:18.5]} 37. Kxf3 {[%clk
0:00:40.8]} 37... Kh7 {[%clk 0:00:18.9]} 38. Nxb5 {[%clk 0:00:37.3]} 38... Rf7+
{[%clk 0:00:18.1]} 39. Ke3 {[%clk 0:00:36.8]} 39... Rh3+ {[%clk 0:00:17]} 40.
Kd4 {[%clk 0:00:36.7]} 40... Rf4+ {[%clk 0:00:16.5]} 41. Kc5 {[%clk 0:00:36.1]}
41... h4 {[%clk 0:00:14]} 42. Rd4 {[%clk 0:00:32.4]} 42... Rf5+ {[%clk
0:00:12.6]} 43. Rd5 {[%clk 0:00:32.2]} 43... Rf2 {[%clk 0:00:12.3]} 44. R1d2
{[%clk 0:00:32.4]} 44... Rhh2 {[%clk 0:00:11.9]} 45. Rxf2 {[%clk 0:00:27.9]}
45... Rxf2 {[%clk 0:00:12.8]} 46. b4 {[%clk 0:00:24.2]} 46... h3 {[%clk
0:00:11.9]} 47. Rd3 {[%clk 0:00:24.1]} 47... h2 {[%clk 0:00:12.2]} 48. Rh3+
{[%clk 0:00:24.2]} 48... Kg7 {[%clk 0:00:12.1]} 49. a4 {[%clk 0:00:24.4]} 49...
g5 {[%clk 0:00:12.6]} 50. Nd6 {[%clk 0:00:20.6]} 50... g4 {[%clk 0:00:07.4]} 51.
Rh4 {[%clk 0:00:17.2]} 51... g3 {[%clk 0:00:06.2]} 52. Ne4 {[%clk 0:00:11]}
52... Rf5+ {[%clk 0:00:05.7]} 53. Kc4 {[%clk 0:00:09.2]} 53... g2 {[%clk
0:00:05.7]} 54. Rg4+ {[%clk 0:00:09]} 54... Kf8 {[%clk 0:00:04]} 55. Rxg2 {[%clk
0:00:07.7]} 55... h1=Q {[%clk 0:00:04]} 56. Rd2 {[%clk 0:00:08.4]} 56... Qxe4+
{[%clk 0:00:03.7]} 57. Rd4 {[%clk 0:00:09.1]} 57... Qe6+ {[%clk 0:00:04.2]} 58.
Kd3 {[%clk 0:00:08.4]} 58... Rf3+ {[%clk 0:00:04.8]} 59. Kd2 {[%clk 0:00:07.5]}
59... Qe3+ {[%clk 0:00:04.8]} 60. Kc2 {[%clk 0:00:07.8]} 60... Qxc3+ {[%clk
0:00:05.7]} 61. Kb1 {[%clk 0:00:07.8]} 61... Rf1+ {[%clk 0:00:05.9]} 0-1